bitfinex/quotes_SOLUSD_20260115
["timestamp","ask_amount","ask_price","bid_price","bid_amount"]
[1768510080337,2.15521283,141.21,141.17,4.85714515]
[1768510080545,9.2371513,141.21,141.17,4.85714515]
[1768510080963,9.23607766,141.23,141.19,4.85714515]
[1768510081156,2.15521283,141.22,141.17,4.85714515]
[1768510081361,2.15521283,141.22,141.16,4.85714515]
[1768510081862,2.15521283,141.2,141.16,11.9411483]
[1768510082247,2.15521283,141.2,141.15,4.85714515]
[1768510082660,2.15521283,141.2,141.15,2.16199287]
[1768510083268,2.15521283,141.2,141.15,4.85714515]
[1768510084466,9.2378674,141.19,141.15,2.16199287]
[1768510085060,2.15521283,141.19,141.15,11.94176755]
[1768510085244,9.23757308,141.2,141.16,2.16199287]
[1768510087165,2.15521283,141.19,141.16,2.16199287]
[1768510088373,2.15521283,141.19,141.14,9.24687585]
[1768510088668,2.15521283,141.19,141.14,11.94202813]
[1768510089062,2.15521283,141.19,141.15,2.16199287]
[1768510089374,9.23826019,141.19,141.15,2.16199287]
[1768510090649,2.15521283,141.18,141.15,2.16199287]
[1768510091666,9.23826019,141.19,141.16,2.16199287]
[1768510091966,104.0,141.24,141.18,2.16199287]
[1768510091967,9.2363628,141.22,141.18,2.16199287]
[1768510092172,2.15521283,141.21,141.18,2.16199287]
[1768510092378,2.15521283,141.21,141.16,2.16199287]
[1768510093055,2.15521283,141.2,141.15,11.9417714]
[1768510093261,2.15521283,141.2,141.15,9.24661912]
[1768510093471,2.15521283,141.2,141.14,2.16199287]
[1768510093656,2.15521283,141.17,141.13,7.08540352]
[1768510093854,2.15521283,141.17,141.13,9.24739639]
[1768510094271,2.15521283,141.17,141.13,2.16199287]
[1768510094666,2.15521283,141.17,141.12,9.34792397]
[1768510095552,4.85036511,141.17,141.12,9.34792397]
[1768510095752,11.9344804,141.17,141.12,9.34792397]
[1768510096153,2.15521283,141.16,141.13,2.16199287]
[1768510096976,2.15521283,141.15,141.12,0.1]
[1768510097164,2.15521283,141.14,141.12,0.1]
[1768510099174,9.23898724,141.17,141.12,2.26199287]
[1768510099360,2.15521283,141.16,141.12,2.26199287]
[1768510100681,9.23947706,141.16,141.12,9.34810521]
[1768510101661,2.1908143,141.15,141.12,9.34810521]
[1768510103568,9.27507853,141.16,141.12,9.34810521]
[1768510104367,2.1908143,141.15,141.12,0.1]
[1768510105563,2.1908143,141.15,141.12,2.150431]
[1768510108089,9.27548763,141.15,141.12,2.150431]
[1768510109575,2.21736521,141.17,141.13,2.1801585]
[1768510109982,9.30127259,141.17,141.13,2.1801585]
[1768510110695,9.30127259,141.17,141.13,9.26579777]
[1768510111894,2.21736521,141.16,141.13,2.1801585]
[1768510112076,2.21736521,141.16,141.12,9.36608252]
[1768510113479,2.21736521,141.16,141.13,2.1801585]
[1768510114394,2.21736521,141.15,141.12,2.2801585]
[1768510116101,2.21736521,141.14,141.12,0.1]
[1768510116296,2.21736521,141.13,141.1,0.0455865]
[1768510116595,9.30355328,141.12,141.1,0.0455865]
[1768510117169,13.51883188,141.12,141.1,0.0455865]
[1768510117598,2.21736521,141.11,141.1,0.0455865]
[1768510118818,9.30403518,141.11,141.1,0.0455865]
[1768510120100,2.21736521,141.1,141.06,2.1801585]
[1768510120807,2.21736521,141.09,141.06,2.1801585]
[1768510121305,9.30477922,141.1,141.06,2.1801585]
[1768510121671,9.30477922,141.1,141.05,0.2]
[1768510121672,6.43264381,141.08,141.05,0.2]
[1768510121900,2.21736521,141.07,141.05,0.2]
[1768510122091,2.21736521,141.08,141.05,0.2]
[1768510122916,2.21736521,141.08,141.05,2.3801585]
[1768510123098,9.30505945,141.09,141.05,9.46979125]
[1768510124201,9.30505945,141.09,141.06,2.1801585]
[1768510124578,7.08717221,141.1,141.06,2.1801585]
[1768510124788,9.30453742,141.1,141.06,2.1801585]
[1768510127288,7.08686121,141.11,141.07,2.1801585]
[1768510127483,7.08686121,141.11,141.08,2.1801585]
[1768510128680,2.21736521,141.1,141.05,0.2]
[1768510128882,2.21736521,141.07,141.05,0.2]
[1768510129208,2.21736521,141.09,141.05,2.3801585]
[1768510129383,9.30422642,141.11,141.06,2.1801585]
[1768510129592,9.30422642,141.11,141.08,2.1801585]
[1768510129905,9.30422642,141.11,141.08,2.1201585]
[1768510130287,9.30422642,141.11,141.06,4.2152786]
[1768510130690,9.30422642,141.11,141.06,11.3042655]
[1768510131712,9.30422642,141.11,141.07,4.2152786]
[1768510132016,7.08584908,141.13,141.09,2.09864369]
[1768510132187,7.08584908,141.13,141.09,2.06864369]
[1768510132388,9.14424248,141.13,141.09,2.06864369]
[1768510133004,9.14424248,141.13,141.09,2.03864369]
[1768510133415,9.14424248,141.13,141.09,6.25392229]
[1768510134093,9.14424248,141.13,141.09,2.03864369]
[1768510139602,2.0583934,141.1,141.06,2.09864369]
[1768510139800,2.0583934,141.1,141.05,6.51392229]
[1768510140209,2.0583934,141.11,141.07,6.31392229]
[1768510140419,2.0583934,141.1,141.06,2.09864369]
[1768510141023,2.0583934,141.1,141.06,6.31392229]
[1768510141714,2.0583934,141.1,141.06,13.40294516]
[1768510142015,9.14460822,141.12,141.08,6.31392229]
[1768510142224,2.0583934,141.12,141.09,2.09864369]
[1768510142404,9.14428955,141.13,141.09,2.09864369]
[1768510142718,2.0583934,141.1,141.06,7.08902287]
[1768510142900,2.0583934,141.1,141.06,9.18766656]
[1768510144100,2.0583934,141.09,141.05,0.2]
[1768510145713,2.0583934,141.09,141.05,9.3883274]
[1768510146730,9.14607775,141.09,141.05,9.3883274]
[1768510147831,9.14607775,141.09,141.05,2.29864369]
[1768510148436,9.14607775,141.09,141.05,6.51392229]
[1768510149608,9.14607775,141.09,141.05,9.38828279]
[1768510149809,2.0583934,141.08,141.05,0.2]
[1768510151231,9.14687466,141.08,141.05,0.2]
[1768510153606,2.0583934,141.07,141.05,0.2]
[1768510155029,9.14712954,141.07,141.05,0.2]
[1768510155233,2.0583934,141.06,141.05,0.2]
[1768510155723,9.14712954,141.07,141.05,0.2]
[1768510156226,2.0583934,141.06,141.03,2.19864369]
[1768510156433,2.0583934,141.06,141.03,0.1]
[1768510158230,9.14762271,141.06,141.03,0.1]
[1768510158919,2.0583934,141.05,141.03,0.1]
[1768510159327,2.0583934,141.04,140.99,2.09864369]
[1768510159533,2.0583934,141.04,140.99,13.40655007]
[1768510159714,2.0583934,141.04,140.99,9.19127147]
[1768510159915,2.0583934,141.04,141.0,2.09864369]
[1768510160127,2.0583934,141.04,141.0,6.31392229]
[1768510160322,9.14885303,141.04,141.0,6.31392229]
[1768510160933,9.14885303,141.04,141.0,2.09864369]
[1768510161114,2.13540472,141.03,141.0,2.09864369]
[1768510162640,9.22632695,141.03,141.0,2.09864369]
[1768510163130,2.13540472,141.03,141.0,2.09864369]
[1768510163334,2.13540472,141.03,141.0,6.31392229]
[1768510163509,9.22591906,141.04,141.0,4.2152786]
[1768510163714,2.13540472,141.05,141.02,2.16080072]
[1768510164631,9.22544837,141.05,141.02,2.58780072]
[1768510166019,9.22544837,141.05,141.02,0.427]
[1768510167125,2.06237188,141.04,141.02,0.427]
[1768510167528,9.15264226,141.04,141.02,0.427]
[1768510168418,2.06237188,141.03,140.99,9.22665386]
[1768510168717,2.06237188,141.03,140.99,2.70162269]
[1768510168917,2.06237188,141.03,140.98,11.92862957]
[1768510169120,2.06237188,141.03,140.99,2.13401755]
[1768510169321,9.15356461,141.02,140.99,2.13401755]
[1768510169921,9.15329459,141.03,140.99,2.13401755]
[1768510170322,2.06237188,141.03,141.0,2.13401755]
[1768510170639,9.15286668,141.04,141.0,2.13401755]
[1768510172018,9.15286668,141.04,141.01,2.13401755]
[1768510173027,9.15224778,141.05,141.02,2.13401755]
[1768510173730,7.0898759,141.05,141.02,4.83564024]
[1768510174017,9.15224778,141.05,141.02,2.13401755]
[1768510178637,2.06237188,141.08,141.03,2.13401755]
[1768510178841,9.15073452,141.08,141.04,2.13401755]
[1768510181444,2.06237188,141.07,141.01,2.13401755]
[1768510181638,4.76399457,141.07,141.02,2.13401755]
[1768510181835,2.06237188,141.07,141.03,2.13401755]
[1768510182231,9.15133292,141.07,141.03,9.22458919]
[1768510182432,2.06237188,141.07,141.04,2.13401755]
[1768510183243,9.15113021,141.07,141.04,2.13401755]
[1768510184025,9.15113021,141.07,141.01,17.72869078]
[1768510184026,2.06237188,141.06,141.02,2.13401755]
[1768510184229,2.06237188,141.06,140.99,17.73096897]
[1768510184230,2.06237188,141.03,141.0,9.22601117]
[1768510184438,9.15255906,141.04,141.01,2.13401755]
[1768510185465,2.06237188,141.03,140.99,2.13401755]
[1768510186456,9.1534509,141.03,140.99,2.13401755]
[1768510188257,9.15371513,141.02,140.99,2.13401755]
[1768510188457,9.09819275,141.02,140.99,2.13401755]
[1768510188761,2.0068495,141.02,140.99,2.13401755]
[1768510189761,9.09805027,141.02,140.99,2.13401755]
[1768510189940,9.09805027,141.02,140.98,4.83564024]
[1768510190141,9.09805027,141.02,140.98,2.13401755]
[1768510190545,7.09120077,141.02,140.98,2.13401755]
[1768510190737,7.09120077,141.02,140.97,12.02911816]
[1768510190738,2.06237188,141.01,140.97,12.02911816]
[1768510190947,2.06237188,141.01,140.97,9.32749547]
[1768510191159,9.15433782,141.01,140.97,12.02911816]
[1768510193244,9.22787001,141.02,140.98,4.75568916]
[1768510193779,2.13661878,141.02,140.99,2.05406647]
[1768510194468,9.22806613,141.02,140.99,2.05406647]
[1768510195264,18.15261344,141.04,141.0,2.05406647]
[1768510195265,5.26484147,141.04,141.0,2.05406647]
[1768510195452,2.56321878,141.04,141.0,2.05406647]
[1768510195762,2.13661878,141.03,141.0,2.05406647]
[1768510196061,2.07661879,141.03,141.0,2.05406647]
[1768510196862,2.07661879,141.03,140.99,2.05406647]
[1768510197165,9.16762905,141.03,140.99,2.05406647]
[1768510197352,9.79263295,141.03,140.99,2.05406647]
[1768510197979,2.13661878,141.02,140.99,2.05406647]
[1768510199262,9.22790615,141.02,140.99,2.05406647]
[1768510200157,9.22790615,141.02,140.98,2.70162269]
[1768510200359,2.13661878,141.01,140.92,3.8]
[1768510200669,4.83824147,140.95,140.91,0.1]
[1768510200844,2.13661878,140.99,140.91,7.1966669]
[1768510201040,7.0932047,140.98,140.91,24.93848792]
[1768510201371,17.73168352,141.0,140.91,24.93848792]
[1768510201372,2.13661878,141.02,140.95,2.70162269]
[1768510201544,2.13661878,141.0,140.91,24.93848792]
[1768510201745,2.13661878,141.0,140.91,27.64011061]
[1768510201946,2.13661878,141.0,140.96,2.70162269]
[1768510202158,2.13661878,141.0,140.91,27.64011061]
[1768510202376,2.13661878,141.0,140.96,4.75568916]
[1768510202553,2.13661878,141.01,140.97,2.05406647]
[1768510202746,2.13661878,141.01,140.97,4.75568916]
[1768510202952,9.2273087,141.03,140.98,2.05406647]
[1768510203157,9.2273087,141.03,140.99,2.05406647]
[1768510203351,2.13661878,141.02,140.95,2.05406647]
[1768510203552,2.13661878,141.02,140.98,2.05406647]
[1768510203765,2.13661878,141.02,140.99,2.70162269]
[1768510204068,9.2273087,141.03,141.0,2.70162269]
[1768510204254,2.13661878,141.02,140.99,2.70162269]
[1768510204769,9.22791325,141.02,140.99,2.70162269]
[1768510204951,2.13661878,141.01,140.99,2.70162269]
[1768510205151,2.07661879,141.01,140.99,2.70162269]
[1768510205370,7.09129447,141.02,140.99,2.70162269]
[1768510205769,7.09084492,141.03,141.0,2.70162269]
[1768510206282,9.79246761,141.03,140.98,2.70162269]
[1768510206458,9.79246761,141.03,140.97,2.05406647]
[1768510206778,27.51919242,141.03,140.98,2.70162269]
[1768510207086,2.13661878,141.02,140.98,2.70162269]
[1768510207283,2.13661878,141.02,140.99,2.70162269]
[1768510207578,2.13661878,141.02,140.97,2.70162269]
[1768510207775,2.13661878,141.01,140.96,2.05406647]
[1768510207962,2.13661878,141.01,140.97,2.70162269]
[1768510208655,9.22855992,141.01,140.97,2.70162269]
[1768510208972,9.22855992,141.01,140.96,9.14815397]
[1768510208973,9.22855992,141.01,140.98,2.70162269]
[1768510209375,9.22855992,141.01,140.96,9.14815397]
[1768510209679,9.65515992,141.01,140.97,2.70162269]
[1768510210884,2.13661878,141.0,140.97,2.70162269]
[1768510211568,2.13661878,141.0,140.97,11.84917812]
[1768510211756,2.13661878,141.0,140.98,2.70162269]
[1768510212483,2.13661878,141.0,140.97,11.84917812]
[1768510213085,9.65496794,141.01,140.97,11.84917812]
[1768510213268,0.4266,141.01,140.98,11.8488305]
[1768510213467,2.13661878,141.03,141.0,2.70162269]
[1768510213870,2.13661878,141.04,141.0,4.75568916]
[1768510214071,2.13661878,141.04,140.98,7.09314134]
[1768510214072,2.13661878,141.04,141.01,2.70162269]
[1768510214269,2.13661878,141.04,141.01,4.75568916]
[1768510215674,2.13661878,141.05,141.02,2.70162269]
[1768510216881,9.22611343,141.06,141.02,4.75568916]
[1768510217080,9.22611343,141.06,141.03,2.70162269]
[1768510217298,2.13661878,141.05,141.01,2.05406647]
[1768510217465,9.22611343,141.06,141.03,2.70162269]
[1768510217799,9.22611343,141.06,141.02,11.84682566]
[1768510218404,9.22611343,141.06,141.03,2.70162269]
[1768510219062,20.42257154,141.08,141.04,4.75568916]
[1768510219063,2.13661878,141.08,141.04,4.75568916]
[1768510219262,9.22488666,141.08,141.04,2.05406647]
[1768510219460,2.13661878,141.07,141.04,2.05406647]
[1768510219664,2.13661878,141.07,141.04,4.75568916]
[1768510220169,9.22450973,141.09,141.05,4.75568916]
[1768510220501,2.13661878,141.08,141.05,2.05406647]
[1768510220663,2.13661878,141.08,141.05,4.75568916]
[1768510221572,2.13661878,141.08,141.05,11.84534355]
[1768510223080,2.13661878,141.08,141.05,4.75568916]
[1768510223386,2.20020694,141.07,141.03,9.18807882]
[1768510223571,2.20020694,141.07,141.04,2.70162269]
[1768510224069,2.20020694,141.07,141.04,11.88923111]
[1768510224278,7.08862194,141.08,141.04,9.18760842]
[1768510224477,9.28882888,141.08,141.04,7.09017553]
[1768510224684,9.28882888,141.08,141.04,11.88922543]
[1768510224869,2.20020694,141.08,141.04,11.88915566]
[1768510225073,9.28803314,141.09,141.05,4.7990499]
[1768510225383,2.20020694,141.09,141.06,2.09742721]
[1768510225583,2.20020694,141.09,141.06,6.31574201]
[1768510225784,7.08735194,141.1,141.07,6.40253107]
[1768510226290,9.33304313,141.1,141.07,6.40253107]
[1768510226596,9.33304313,141.1,141.07,4.2183148]
[1768510226772,9.33304313,141.1,141.06,6.40253107]
[1768510228796,9.33304313,141.1,141.06,13.49167435]
[1768510229102,9.3325701,141.11,141.07,2.18421627]
[1768510229591,9.3325701,141.11,141.07,6.40253107]
[1768510229793,2.24569119,141.1,141.07,2.18421627]
[1768510229997,6.46400599,141.09,141.03,2.18421627]
[1768510230293,2.24569119,141.08,141.04,2.18421627]
[1768510230696,6.46400599,141.08,141.04,2.18421627]
[1768510230876,2.24569119,141.08,141.04,2.18421627]
[1768510231075,2.24569119,141.08,141.04,9.2743917]
[1768510232302,9.33307615,141.1,141.05,6.40253107]
[1768510233017,2.24569119,141.09,141.05,2.18421627]
[1768510233708,2.24569119,141.08,141.05,2.18421627]
[1768510233911,2.24569119,141.06,141.02,2.18421627]
[1768510234205,7.0891819,141.06,141.03,2.18421627]
[1768510234509,7.08891283,141.07,141.03,2.18421627]
[1768510235209,17.71700657,141.11,141.03,4.2183148]
[1768510235404,4.2183148,141.09,141.04,2.18421627]
[1768510235699,4.2183148,141.1,141.05,2.18421627]
[1768510236002,6.46400599,141.09,141.05,2.18421627]
[1768510236181,13.55218291,141.08,141.03,2.18421627]
[1768510236387,2.24569119,141.07,141.03,2.18421627]
[1768510236593,6.46400599,141.07,141.03,2.18421627]
[1768510237277,7.08817692,141.08,141.02,7.09078121]
[1768510237278,13.55188952,141.09,141.04,2.18421627]
[1768510237483,13.55188952,141.09,141.0,3.8]
[1768510237484,9.33357472,141.09,141.05,9.27388254]
[1768510238201,9.33357472,141.09,141.05,2.18421627]
[1768510238698,9.33357472,141.09,141.05,9.2738904]
[1768510238888,7.08788353,141.09,141.06,2.18421627]
[1768510240285,9.33357472,141.09,141.06,2.18421627]
[1768510240484,9.33357472,141.09,141.05,2.18421627]
[1768510241690,7.08788353,141.09,141.06,2.18421627]
[1768510241885,2.24569119,141.08,141.03,9.27451962]
[1768510242088,2.24569119,141.08,141.03,13.49283442]
[1768510242416,2.24569119,141.07,141.03,2.18421627]
[1768510242705,2.24569119,141.07,141.04,2.18421627]
[1768510242889,9.33408096,141.08,141.04,2.18421627]
[1768510243211,9.33408096,141.08,141.05,2.18421627]
[1768510245491,2.24569119,141.07,141.03,2.18421627]
[1768510245699,2.24569119,141.06,141.03,2.18421627]
[1768510246612,9.33459366,141.07,141.03,2.18421627]
[1768510248303,9.33459366,141.07,141.04,2.18421627]
[1768510253425,9.33459366,141.07,141.04,2.09971627]
[1768510259935,2.24569119,141.07,141.04,2.09971627]
[1768510260233,7.08839874,141.08,141.04,2.09971627]
[1768510260444,7.08839874,141.08,141.05,2.06142747]
[1768510261036,9.15612,141.08,141.05,2.06142747]
[1768510261231,7.08839874,141.08,141.05,2.06142747]
[1768510261415,9.15549031,141.09,141.05,2.06142747]
[1768510261616,7.08724343,141.1,141.06,2.06142747]
[1768510261841,7.08724343,141.1,141.07,2.06142747]
[1768510262228,24.80517397,141.1,141.07,2.03142748]
[1768510262427,9.15496469,141.1,141.07,2.03142748]
[1768510263035,2.06772126,141.07,141.02,7.09087383]
[1768510263241,2.06772126,141.07,141.02,4.2183148]
[1768510263645,2.06772126,141.08,141.03,4.2183148]
[1768510263844,2.06772126,141.08,141.03,11.30872686]
[1768510264351,2.06772126,141.07,141.04,2.06142747]
[1768510264559,9.15638384,141.08,141.04,2.06142747]
[1768510267441,4.2183148,141.09,141.05,2.06142747]
[1768510267442,9.15566657,141.09,141.05,2.06142747]
[1768510268439,2.06772126,141.08,141.05,2.06142747]
[1768510268937,9.15606897,141.08,141.05,2.06142747]
[1768510269959,21.93430842,141.12,141.06,2.06142747]
[1768510270253,2.06772126,141.11,141.07,2.03142748]
[1768510270463,2.06772126,141.11,141.07,2.00142749]
[1768510270839,7.08676879,141.11,141.07,2.00142749]
[1768510271038,7.08676879,141.11,141.06,11.30717121]
[1768510271355,9.15449005,141.11,141.06,11.30717121]
[1768510272345,9.15449005,141.11,141.07,2.06142747]
[1768510272538,9.15449005,141.11,141.07,2.03142748]
[1768510273557,7.08635956,141.12,141.08,4.2183148]
[1768510273734,5.7560957,141.13,141.08,4.2183148]
[1768510273933,12.84195661,141.13,141.08,4.2183148]
[1768510274658,12.84195661,141.13,141.09,2.06142747]
[1768510274961,12.84195661,141.13,141.09,2.03142748]
[1768510276336,2.06772126,141.12,141.09,2.03142748]
[1768510277158,9.15406614,141.12,141.09,2.03142748]
[1768510277538,7.08634488,141.12,141.09,6.24974228]
[1768510278147,7.08634488,141.12,141.09,4.2183148]
[1768510278349,7.08634488,141.12,141.1,2.06142747]
[1768510279571,7.08516366,141.14,141.12,2.06142747]
[1768510279738,7.08516366,141.14,141.11,4.2183148]
[1768510280589,1.03999996,141.15,141.12,4.2183148]
[1768510281666,1.03999996,141.15,141.12,6.37088372]
[1768510282163,1.03999996,141.15,141.13,6.37088372]
[1768510282461,8.12468412,141.15,141.12,6.37088372]
[1768510282677,8.12468412,141.15,141.12,6.34088372]
[1768510282967,8.12468412,141.15,141.12,6.37088372]
[1768510283162,10.16089914,141.15,141.12,2.15256892]
[1768510283946,10.16089914,141.15,141.11,4.2183148]
[1768510284149,2.03621502,141.14,141.1,6.37088372]
[1768510284555,2.03621502,141.14,141.1,2.15256892]
[1768510284756,2.03621502,141.14,141.09,6.37088372]
[1768510285072,2.03621502,141.14,141.1,2.15256892]
[1768510285258,2.03621502,141.1,141.04,2.15256892]
[1768510285463,2.03621502,141.09,141.04,4.85301427]
[1768510285659,2.03621502,141.09,141.05,2.21683511]
[1768510286475,7.08817692,141.08,141.05,2.21683511]
[1768510294379,9.23708225,141.08,141.05,2.21683511]
[1768510295986,2.14890533,141.08,141.05,2.21683511]
[1768510296978,9.23626921,141.1,141.06,2.21683511]
[1768510297685,9.2356352,141.11,141.07,2.21683511]
[1768510298086,20.41646064,141.12,141.07,2.21683511]
[1768510298087,9.235239,141.12,141.08,2.21683511]
[1768510298468,2.14890533,141.15,141.11,2.21683511]
[1768510298866,9.23356703,141.15,141.11,9.30345022]
[1768510299179,9.23356703,141.15,141.11,2.21683511]
[1768510301586,9.23356703,141.15,141.11,9.30340185]
[1768510301769,9.23356703,141.15,141.11,12.0038472]
[1768510301971,2.14890533,141.14,141.11,2.21683511]
[1768510303793,2.14890533,141.14,141.11,9.30347391]
[1768510304393,2.14890533,141.14,141.11,2.21683511]
[1768510304879,2.14890533,141.14,141.11,9.30345743]
[1768510305079,2.14890533,141.14,141.11,12.00390278]
[1768510305393,2.14890533,141.15,141.12,2.21683511]
[1768510305573,11.58323876,141.16,141.12,2.21683511]
[1768510305772,11.58323876,141.16,141.12,4.91728046]
[1768510306079,2.3499999,141.16,141.14,2.21683511]
[1768510307674,2.3499999,141.16,141.14,4.91728046]
[1768510308176,2.3499999,141.16,141.14,2.21683511]
[1768510308489,2.3499999,141.16,141.14,4.91728046]
[1768510309795,2.3499999,141.16,141.13,2.21683511]
[1768510310093,2.3499999,141.16,141.14,2.70044535]
[1768510310272,2.3499999,141.16,141.15,2.70044535]
[1768510310775,0.2,141.17,141.15,2.21683511]
[1768510310969,0.2,141.17,141.14,4.733977]
[1768510311594,2.40135445,141.19,141.16,2.03353165]
[1768510311795,0.2,141.2,141.18,2.70044535]
[1768510312188,0.2,141.2,141.18,11.81707752]
[1768510313092,0.2,141.2,141.18,7.08310052]
[1768510313266,0.2,141.2,141.18,9.78354587]
[1768510313992,0.2,141.2,141.18,11.81707752]
[1768510316000,2.20135445,141.22,141.19,4.733977]
[1768510316382,9.282519,141.22,141.19,4.733977]
[1768510317583,2.20135445,141.22,141.19,11.81648126]
[1768510318606,2.20135445,141.23,141.2,4.733977]
[1768510318899,2.20135445,141.23,141.19,11.81648126]
[1768510319526,2.20135445,141.23,141.2,2.70044535]
[1768510319684,2.20135445,141.23,141.19,9.11603591]
[1768510319879,2.20135445,141.23,141.2,2.70044535]
[1768510321196,9.48164902,141.24,141.2,11.81601916]
[1768510321407,9.48164902,141.24,141.21,2.70044535]
[1768510322209,9.48164902,141.24,141.2,4.733977]
[1768510322510,2.20135445,141.23,141.18,11.81685563]
[1768510322815,2.20135445,141.23,141.19,2.70044535]
[1768510323322,2.20135445,141.23,141.2,2.70044535]
[1768510323602,2.20135445,141.23,141.19,2.03353165]
[1768510323603,0.2,141.24,141.21,9.78197928]
[1768510323811,0.2,141.25,141.23,4.733977]
[1768510323979,0.2,141.25,141.24,2.70044535]
[1768510324180,0.2,141.25,141.23,2.70044535]
[1768510327305,0.2,141.25,141.22,2.03353165]
[1768510327508,0.2,141.25,141.22,9.11463276]
[1768510327806,0.2,141.25,141.22,4.733977]
[1768510330395,2.20135445,141.24,141.19,9.11589924]
[1768510330611,2.20135445,141.24,141.19,11.81634459]
[1768510330803,2.20135445,141.22,141.18,7.08295293]
[1768510331103,2.20135445,141.22,141.17,9.11713351]
[1768510331309,2.20135445,141.22,141.18,2.70044535]
[1768510332194,2.20135445,141.22,141.18,9.7834586]
[1768510332401,2.20135445,141.21,141.18,9.7834586]
[1768510334214,2.20135445,141.21,141.17,11.81759075]
[1768510334700,2.20135445,141.21,141.18,2.70044535]
[1768510336216,2.20135445,141.21,141.18,4.733977]
[1768510338496,2.20135445,141.21,141.18,11.81709476]
[1768510340201,2.20135445,141.24,141.21,2.03353165]
[1768510340511,2.20135445,141.24,141.21,2.70044535]
[1768510340719,9.28153739,141.24,141.21,2.70044535]
[1768510341409,2.21137554,141.23,141.19,7.08246985]
[1768510341614,2.21137554,141.23,141.2,2.70044535]
[1768510341810,2.41137554,141.25,141.21,9.78200612]
[1768510342313,9.49113053,141.25,141.21,9.78200612]
[1768510342527,2.21137554,141.24,141.21,9.78200612]
[1768510343718,2.21137554,141.24,141.21,7.08156077]
[1768510343920,2.21137554,141.24,141.21,9.78200612]
[1768510344623,2.41137554,141.25,141.21,11.85066948]
[1768510344802,2.41137554,141.25,141.22,2.70044535]
[1768510345120,2.41137554,141.25,141.23,2.70044535]
[1768510345421,0.2,141.25,141.23,4.20784946]
[1768510346817,2.15619096,141.28,141.24,6.22371449]
[1768510347117,2.15619096,141.27,141.24,4.20784946]
[1768510347319,2.15619096,141.27,141.23,4.20784946]
[1768510347629,6.36404042,141.27,141.22,4.20784946]
[1768510347796,2.15619096,141.26,141.22,4.20784946]
[1768510348000,2.15619096,141.26,141.22,11.28892206]
[1768510349112,7.07934892,141.26,141.22,11.28892206]
[1768510349313,2.15619096,141.25,141.22,11.28892206]
[1768510349926,2.15619096,141.25,141.23,4.20784946]
[1768510352013,2.15619096,141.24,141.2,12.89779466]
[1768510352213,2.15619096,141.24,141.22,4.20784946]
[1768510354024,2.15619096,141.24,141.2,7.08198378]
[1768510354025,2.15619096,141.23,141.19,8.00784946]
[1768510354329,2.15619096,141.23,141.2,4.20784946]
[1768510354507,2.15619096,141.23,141.21,4.20784946]
[1768510355028,7.07984447,141.25,141.22,4.20784946]
[1768510355333,2.15619096,141.26,141.24,4.20784946]
[1768510356817,2.15619096,141.26,141.23,9.0963071]
[1768510356818,2.15619096,141.25,141.23,4.20784946]
[1768510358324,2.15619096,141.24,141.22,4.20784946]
[1768510362031,2.15619096,141.24,141.21,4.20784946]
[1768510362238,2.15619096,141.24,141.2,9.09761213]
[1768510362457,2.15619096,141.24,141.21,4.20784946]
[1768510362741,2.15619096,141.23,141.18,9.09866008]
[1768510362911,2.15619096,141.23,141.19,4.20784946]
[1768510363840,24.78079757,141.24,141.2,13.30576753]
[1768510363841,2.15619096,141.24,141.2,13.30576753]
[1768510364019,2.15619096,141.24,141.21,4.20784946]
[1768510364222,2.15619096,141.24,141.2,11.2899025]
[1768510364543,2.15619096,141.24,141.2,4.20784946]
[1768510366245,2.15619096,141.22,141.19,11.2903941]
[1768510366446,2.15619096,141.22,141.19,4.20784946]
[1768510367646,2.15619096,141.22,141.18,9.09879979]
[1768510367847,2.15619096,141.22,141.19,4.20784946]
[1768510368642,2.15619096,141.22,141.19,11.29040969]
[1768510369040,2.15619096,141.22,141.19,13.30627472]
[1768510369764,2.15619096,141.22,141.19,11.29040969]
[1768510370431,2.15619096,141.22,141.19,4.20784946]
[1768510371147,2.15619096,141.22,141.18,9.09882209]
[1768510371450,2.15619096,141.22,141.19,11.29050136]
[1768510373447,2.15619096,141.22,141.19,13.37913549]
[1768510373630,2.15619096,141.22,141.2,4.20784946]
[1768510374255,2.0202973,141.24,141.2,6.29648359]
[1768510375042,2.0202973,141.24,141.21,11.2895009]
[1768510377658,2.0202973,141.24,141.2,13.37840455]
[1768510378487,9.10052629,141.24,141.2,13.37840455]
[1768510378897,2.0202973,141.24,141.2,13.37840455]
[1768510381996,9.09967977,141.26,141.23,2.08863413]
[1768510382491,2.0202973,141.26,141.23,6.29648359]
[1768510382687,2.0202973,141.26,141.23,2.08863413]
[1768510382872,2.0202973,141.26,141.23,6.29648359]
[1768510383298,2.0202973,141.28,141.24,6.29648359]
[1768510383868,2.0202973,141.28,141.24,13.37647732]
[1768510384082,2.0202973,141.28,141.25,6.29648359]
[1768510384292,9.0980189,141.29,141.26,4.20784946]
[1768510384487,2.0202973,141.29,141.26,4.20784946]
[1768510386494,2.0202973,141.28,141.25,13.37611248]
[1768510387285,2.0202973,141.28,141.24,11.28777932]
[1768510387487,2.0202973,141.28,141.24,13.37641345]